bitfinex/quotes_ETHUSD_20250214
["timestamp","ask_amount","ask_price","bid_price","bid_amount"]
[1739526282194,5.3755809,2717.3,2717.2,0.34253928]
[1739526282600,4.44936,2716.9,2716.8,0.2496]
[1739526283842,4.44936,2716.9,2716.8,0.70280469]
[1739526284147,4.45686,2716.9,2716.8,0.59268897]
[1739526284313,4.45686,2716.9,2715.3,9.96138429]
[1739526284314,3.68188,2716.0,2715.8,1.21138429]
[1739526284720,4.45053,2716.1,2715.9,0.1110081]
[1739526285044,4.45053,2716.1,2716.0,1.21138429]
[1739526285345,0.7687,2716.1,2716.0,1.3222932]
[1739526285720,3.68161,2716.2,2716.0,0.11090891]
[1739526285972,3.68174,2716.1,2716.0,0.11090891]
[1739526286107,3.68161,2716.2,2715.7,3.17305983]
[1739526286473,3.68161,2716.2,2715.8,0.11110728]
[1739526286775,7.36335,2716.2,2715.7,3.92350881]
[1739526287067,7.36335,2716.2,2715.9,0.1110081]
[1739526287365,3.68179,2716.1,2715.8,0.11110728]
[1739526287522,0.7687,2716.3,2715.7,3.92350881]
[1739526287732,3.68175,2716.1,2715.9,0.1110081]
[1739526287929,0.7687,2716.3,2715.8,0.11110728]
[1739526288152,0.7687,2716.3,2715.7,7.60570881]
[1739526288315,4.45026,2716.3,2715.9,0.1110081]
[1739526288533,3.68162,2716.2,2715.9,0.1110081]
[1739526289569,0.7687,2716.3,2715.9,0.1110081]
[1739526290470,4.45017,2716.3,2715.9,0.1110081]
[1739526290666,3.68139,2716.4,2716.0,0.6491]
[1739526291052,3.68139,2716.4,2716.1,0.11080974]
[1739526292893,4.51261,2716.2,2716.1,0.11080974]
[1739526293414,3.6818,2716.1,2715.8,0.55]
[1739526293704,3.6818,2716.1,2715.7,0.74824341]
[1739526294056,3.6819,2716.0,2715.7,0.74824341]
[1739526294782,4.51261,2716.2,2715.7,0.74824341]
[1739526294940,8.19434,2716.2,2715.7,0.74824341]
[1739526295140,8.19433,2716.2,2715.7,0.74824341]
[1739526295554,4.51261,2716.2,2715.6,0.55]
[1739526295755,8.19433,2716.2,2715.7,0.74089637]
[1739526296652,3.68175,2716.1,2715.7,0.74089637]
[1739526297383,4.51264,2716.2,2715.7,0.74089637]
[1739526298041,8.19436,2716.2,2715.7,0.74089637]
[1739526298263,4.51264,2716.2,2715.7,0.74089637]
[1739526298477,4.51264,2716.2,2715.8,0.5703884]
[1739526298655,8.19437,2716.2,2715.8,0.5703884]
[1739526299081,4.51264,2716.2,2715.8,0.5703884]
[1739526299384,8.19435,2716.2,2715.8,0.5703884]
[1739526299705,3.68177,2716.1,2715.8,0.5703884]
[1739526299886,3.68177,2716.1,2715.7,0.74089637]
[1739526300089,4.51264,2716.2,2715.7,0.74089637]
[1739526300389,3.68179,2716.1,2715.7,0.74089637]
[1739526300691,0.831,2716.2,2715.7,4.42307637]
[1739526300846,4.51264,2716.2,2715.7,4.42307637]
[1739526301055,3.68183,2716.1,2715.8,0.9386104]
[1739526301294,0.831,2716.2,2715.7,0.74089637]
[1739526301502,3.68199,2716.0,2715.7,0.74089637]
[1739526301794,3.68175,2716.1,2715.7,0.74089637]
[1739526302092,0.831,2716.2,2715.7,0.74089637]
[1739526302272,4.51261,2716.2,2715.7,4.42309637]
[1739526302454,3.68175,2716.1,2715.7,0.74089637]
[1739526303269,3.68188,2716.0,2715.7,0.74089637]
[1739526303722,3.68175,2716.1,2715.7,0.74089637]
[1739526303921,4.51265,2716.2,2715.7,4.42316637]
[1739526304081,3.68177,2716.1,2715.7,0.74089637]
[1739526304887,3.68177,2716.1,2715.7,1.08275746]
[1739526305518,4.51264,2716.2,2715.7,1.08275746]
[1739526305723,3.68183,2716.1,2715.7,1.08275746]
[1739526306220,4.51264,2716.2,2715.7,5.72963721]
[1739526306424,4.51264,2716.2,2715.7,5.38777612]
[1739526306605,8.19437,2716.2,2715.7,5.38777612]
[1739526306797,4.51264,2716.2,2715.7,5.38777612]
[1739526307249,0.831,2716.2,2715.7,1.70556612]
[1739526307542,3.68182,2716.1,2715.8,0.11156832]
[1739526307683,3.68182,2716.1,2715.8,1.32405114]
[1739526307883,3.68182,2716.1,2715.8,1.21248282]
[1739526308125,3.68182,2716.1,2715.9,0.11146913]
[1739526308753,0.831,2716.2,2715.9,0.11146913]
[1739526308956,3.68182,2716.1,2715.9,0.11146913]
[1739526309751,0.831,2716.2,2715.9,0.11146913]
[1739526309895,4.51272,2716.2,2715.9,0.11146913]
[1739526310097,3.68157,2716.3,2715.9,0.76056913]
[1739526310604,3.68157,2716.3,2715.9,1.10243022]
[1739526311099,3.68161,2716.2,2715.9,1.10243022]
[1739526311468,3.68157,2716.3,2715.9,1.10243022]
[1739526311915,3.68157,2716.3,2715.9,4.78444022]
[1739526312124,0.7585,2716.6,2716.2,1.21248282]
[1739526312347,0.7585,2716.8,2716.4,1.21248282]
[1739526312505,0.7585,2716.8,2716.6,1.21248282]
[1739526312702,0.7585,2716.8,2716.5,0.11132707]
[1739526312897,0.7585,2716.8,2716.4,1.21248282]
[1739526312898,0.7585,2716.8,2716.7,0.1111288]
[1739526313154,0.7585,2716.8,2716.6,0.11122793]
[1739526313355,4.43894,2717.1,2716.7,0.1111288]
[1739526313553,4.43894,2717.1,2716.7,0.7602288]
[1739526313860,5.79229243,2717.1,2716.7,0.7602288]
[1739526314000,3.68053,2717.0,2716.7,0.7602288]
[1739526314665,5.79229243,2717.1,2716.7,0.7602288]
[1739526314666,9.47277243,2717.1,2716.7,0.7602288]
[1739526314820,3.68054,2717.0,2716.7,0.7602288]
[1739526315425,5.31778528,2717.2,2716.7,4.4411388]
[1739526315623,4.535349,2717.3,2716.7,4.4411388]
[1739526315802,4.535349,2717.3,2716.8,0.55]
[1739526315803,0.096599,2717.3,2716.8,0.55]
[1739526316003,0.096599,2717.3,2716.9,4.32963]
[1739526316237,3.776749,2717.3,2716.9,0.75985663]
[1739526317808,0.096599,2717.3,2716.9,0.75985663]
[1739526318851,3.68052,2717.0,2716.9,0.11075663]
[1739526321063,4.494639,2717.0,2716.9,0.11075663]
[1739526321873,3.6808,2716.8,2716.7,0.34201631]
[1739526322467,3.6808,2716.8,2716.7,0.45257075]
[1739526322676,4.4685,2716.8,2716.7,0.45257075]
[1739526322974,7.4685,2716.8,2716.7,0.34201631]
[1739526323129,3.68134,2716.4,2716.3,0.34201631]
[1739526323336,3.68134,2716.4,2716.3,0.45299563]
[1739526324255,3.68134,2716.4,2716.3,0.11097932]
[1739526324568,4.46154,2716.4,2716.0,0.6491]
[1739526325074,3.68148,2716.3,2716.1,0.11117764]
[1739526325531,3.68124,2716.5,2716.1,0.11117764]
[1739526326066,3.6816,2716.3,2716.1,0.11117764]
[1739526326376,3.68159,2716.3,2716.1,0.11117764]
[1739526326745,3.68135,2716.4,2716.1,0.11117764]
[1739526327480,3.68161,2716.2,2716.1,0.11117764]
[1739526327661,4.50491,2716.2,2716.1,0.11117764]
[1739526328069,3.68188,2716.0,2715.9,0.34201631]
[1739526328845,3.68215,2715.8,2715.7,0.34201631]
[1739526329048,4.50545,2715.8,2715.7,0.34201631]
[1739526329270,5.331698,2715.8,2715.7,0.34201631]
[1739526330366,3.68276,2715.4,2715.0,0.34201631]
[1739526330563,7.36556,2715.4,2715.0,0.34201631]
[1739526330762,3.68276,2715.4,2715.0,0.34201631]
[1739526331280,3.68276,2715.4,2715.1,0.55]
[1739526331781,3.68276,2715.4,2715.0,0.55]
[1739526332645,3.68276,2715.4,2715.0,0.89201631]
[1739526332978,3.683,2715.2,2715.0,0.34201631]
[1739526333537,4.50606,2715.4,2715.0,0.34201631]
[1739526333781,8.18885,2715.4,2715.0,0.34201631]
[1739526334395,3.68283,2715.3,2714.9,0.55]
[1739526336088,4.50606,2715.4,2714.9,0.55]
[1739526336237,8.18883,2715.4,2714.9,0.55]
[1739526336677,4.50606,2715.4,2714.9,0.55]
[1739526337207,0.8233,2715.4,2714.9,4.23324]
[1739526337687,4.50601,2715.4,2715.0,0.11298499]
[1739526337884,0.8233,2715.4,2715.0,0.11298499]
[1739526338051,4.50607,2715.4,2715.0,0.11298499]
[1739526338647,0.8233,2715.4,2715.0,0.11298499]
[1739526339051,4.50601,2715.4,2715.0,0.11298499]
[1739526339472,3.6825,2715.6,2715.0,0.11298499]
[1739526339677,3.68221,2715.8,2715.3,3.68281]
[1739526339887,5.31778528,2716.0,2715.6,3.68241]
[1739526340060,3.68176,2716.1,2715.6,3.68241]
[1739526340256,0.18466029,2716.2,2715.7,0.11265459]
[1739526340458,3.6817,2716.2,2715.7,0.11265459]
[1739526340788,0.814941,2716.2,2715.7,3.79483459]
[1739526340990,8.99908528,2716.5,2716.0,0.55]
[1739526341587,8.99908528,2716.5,2716.1,0.11211214]
[1739526342192,3.68138,2716.4,2716.1,0.11211214]
[1739526342488,5.31778528,2716.5,2716.1,0.11211214]
[1739526342694,3.68138,2716.4,2716.1,0.11211214]
[1739526342999,5.31778528,2716.5,2716.1,0.11211214]
[1739526343201,5.31778528,2716.5,2716.0,0.41331214]
[1739526343488,3.68137,2716.4,2716.2,0.10761242]
[1739526343645,3.68137,2716.4,2716.1,0.10771158]
[1739526343847,3.68137,2716.4,2716.3,0.10751326]
[1739526344042,3.68147,2716.3,2716.2,0.10761242]
[1739526344281,3.68147,2716.3,2716.0,0.41331214]
[1739526344547,3.68147,2716.3,2716.1,0.10771158]
[1739526345093,3.68161,2716.2,2716.1,0.10771158]
[1739526345447,3.68177,2716.1,2715.7,0.6491]
[1739526346146,4.48397,2716.3,2715.7,0.6491]
[1739526346388,3.68164,2716.2,2715.7,0.6491]
[1739526346885,4.48397,2716.3,2715.7,0.6491]
[1739526347197,3.68197,2716.0,2715.7,0.6491]
[1739526347366,3.68197,2716.0,2715.5,7.16938554]
[1739526347563,3.68197,2716.0,2715.5,1.91938554]
[1739526348397,3.68191,2716.0,2715.5,5.60193554]
[1739526348562,3.68203,2715.9,2715.5,1.91938554]
[1739526349092,3.68178,2716.1,2715.5,1.91938554]
[1739526349298,3.68203,2715.9,2715.5,1.91938554]
[1739526349479,3.68203,2715.9,2715.5,2.260874]
[1739526350800,3.68203,2715.9,2715.6,0.1082399]
[1739526352901,3.68203,2715.9,2715.6,0.44972836]
[1739526353714,3.68229,2715.7,2715.6,0.44972836]
[1739526353876,4.050519,2715.7,2715.6,0.44972836]
[1739526354259,4.050519,2715.7,2715.6,0.1082399]
[1739526354774,3.68242,2715.6,2715.5,0.34148846]
[1739526354996,3.68242,2715.6,2715.5,0.44597211]
[1739526355464,7.732939,2715.7,2715.5,0.44597211]
[1739526355799,3.68242,2715.6,2715.5,0.44597211]
[1739526355976,4.050519,2715.7,2715.5,0.10448365]
[1739526356175,3.68242,2715.6,2715.2,0.6491]
[1739526356409,3.68242,2715.6,2715.3,0.1046821]
[1739526356991,3.68235,2715.7,2715.3,0.1046821]
[1739526357321,3.68244,2715.6,2715.3,0.1046821]
[1739526357544,3.68236,2715.7,2715.3,0.1046821]
[1739526357892,3.68242,2715.6,2715.3,0.1046821]
[1739526358634,3.68256,2715.5,2715.3,0.1046821]
[1739526360640,3.68229,2715.7,2715.3,0.1046821]
[1739526360841,7.36469,2715.7,2715.3,0.1046821]
[1739526361041,4.44104,2715.8,2715.3,0.1046821]
[1739526361205,3.68229,2715.7,2715.3,0.1046821]
[1739526361405,0.7588,2715.8,2715.3,0.1046821]
[1739526361605,3.68251,2715.6,2715.3,0.1046821]
[1739526363878,3.68231,2715.7,2715.3,0.1046821]
[1739526364082,7.3647,2715.7,2715.3,0.1046821]
[1739526364246,3.68242,2715.6,2715.3,0.1046821]
[1739526365785,3.68168,2716.2,2715.6,4.33144]
[1739526365983,0.18770663,2716.4,2715.7,0.65474654]
[1739526366184,3.68184,2716.1,2715.7,0.65474654]
[1739526366481,3.68215,2715.8,2715.7,0.10474654]
[1739526366658,4.44115,2715.8,2715.7,0.10474654]
[1739526366858,3.68251,2715.6,2715.2,0.3424703]
[1739526367086,3.68283,2715.3,2715.2,0.3424703]
[1739526367287,3.69033,2715.3,2715.2,0.3424703]
[1739526367590,3.68304,2715.2,2714.6,4.33284]
[1739526367794,3.68304,2715.2,2714.7,0.10571463]
[1739526368366,3.69033,2715.3,2714.7,0.10571463]
[1739526368585,3.68298,2715.2,2714.7,0.10571463]
[1739526368917,3.68298,2715.2,2714.7,0.44856244]
[1739526369400,3.68313,2715.1,2714.7,0.44856244]
[1739526369754,3.68313,2715.1,2714.7,0.10571463]
[1739526370695,0.813231,2715.2,2714.7,0.10571463]
[1739526370903,3.68311,2715.1,2714.7,0.10571463]
[1739526373303,3.68299,2715.2,2714.7,3.78932463]
[1739526373498,3.69041,2715.3,2714.7,3.78932463]
[1739526374087,7.37334,2715.3,2714.7,3.78932463]
[1739526374297,3.68313,2715.1,2714.7,0.10571463]
[1739526374765,3.69041,2715.3,2714.7,3.78934463]
[1739526374766,3.68304,2715.2,2714.7,3.78934463]
[1739526375182,3.6831,2715.1,2714.7,0.10571463]
[1739526375705,3.68299,2715.2,2714.7,3.78931463]
[1739526375908,3.69041,2715.3,2714.7,3.78931463]
[1739526376132,9.18016709,2715.5,2714.9,0.6491]
[1739526376272,3.68278,2715.4,2714.9,4.33245]
[1739526376609,3.68278,2715.4,2715.0,0.10564356]
[1739526377108,5.31778528,2715.5,2715.0,0.10564356]
[1739526377303,3.68278,2715.4,2715.0,0.10564356]
[1739526377508,3.68282,2715.4,2715.0,0.10564356]
[1739526378608,3.68279,2715.4,2715.0,0.10564356]
[1739526379297,3.68296,2715.3,2715.0,0.10564356]
[1739526380376,4.49296,2715.3,2715.0,0.10564356]
[1739526380575,3.68296,2715.2,2715.0,0.10564356]
[1739526381009,4.49296,2715.3,2715.0,0.10564356]
[1739526381213,3.68296,2715.3,2715.0,0.10564356]
[1739526381384,3.68265,2715.5,2715.0,3.78879356]
[1739526381986,7.36531,2715.5,2715.0,3.78879356]
[1739526382314,3.6827,2715.4,2715.0,0.10564356]
[1739526383310,3.68265,2715.5,2715.0,0.10564356]
[1739526383514,3.68265,2715.5,2715.1,0.6491]
[1739526384021,3.68265,2715.5,2715.2,0.10536814]
[1739526384227,4.431915,2715.5,2715.2,0.10536814]
[1739526384511,3.6827,2715.4,2715.2,0.10536814]
[1739526385015,4.431915,2715.5,2715.2,0.10536814]
[1739526385794,3.68271,2715.4,2715.2,0.10536814]
[1739526386353,4.431915,2715.5,2715.2,0.10536814]
[1739526386876,3.68276,2715.4,2715.2,0.10536814]
[1739526387816,4.5752275,2715.4,2715.2,0.10536814]
[1739526388618,0.8924675,2715.4,2715.2,0.10536814]
[1739526388778,4.431825,2715.5,2715.2,0.10536814]
[1739526389178,3.68273,2715.4,2715.2,0.10536814]
[1739526390020,3.68283,2715.3,2715.2,0.10536814]
[1739526390239,3.68283,2715.3,2714.9,0.6491]
[1739526390395,3.68283,2715.3,2715.2,0.105526]
[1739526390601,3.68306,2715.2,2715.0,0.34313778]
[1739526390796,3.68296,2715.2,2715.1,0.10562524]
[1739526392009,3.68296,2715.2,2714.7,5.8991]
[1739526392346,3.68314,2715.1,2714.8,0.10592301]
[1739526392821,3.68314,2715.1,2714.9,0.34320687]
[1739526393029,3.68314,2715.1,2715.0,0.1057326]
[1739526393214,0.81,2715.2,2715.0,0.1057326]
[1739526393402,4.49305,2715.2,2715.0,0.1057326]
[1739526394443,4.49305,2715.2,2714.7,9.58271]
[1739526394641,4.49305,2715.2,2715.1,0.10563335]
[1739526394848,5.39177905,2715.2,2714.7,9.58271]
[1739526395002,4.49305,2715.2,2715.1,0.10563335]
[1739526395340,4.49305,2715.2,2714.7,4.33271]
[1739526395545,4.49305,2715.2,2715.1,0.10563335]
[1739526395745,4.49305,2715.2,2714.8,0.34330038]
[1739526395902,4.49305,2715.2,2715.1,0.10563335]
[1739526396541,4.49305,2715.2,2714.8,0.34330038]
[1739526396542,3.68311,2715.1,2714.8,0.34330038]
[1739526396747,3.68311,2715.1,2714.9,0.34330038]
[1739526397206,3.68311,2715.1,2715.0,0.1057326]
[1739526397407,4.493,2715.2,2715.0,0.1057326]
[1739526398150,3.6831,2715.1,2715.0,0.44903298]
[1739526398864,0.81,2715.2,2715.0,0.44903298]
[1739526399024,4.49298,2715.2,2715.0,0.44903298]
[1739526399229,4.49298,2715.2,2715.0,0.1057326]
[1739526399554,4.49298,2715.2,2714.7,4.33274]
[1739526400058,4.49298,2715.2,2714.8,0.10593112]
[1739526400952,4.49298,2715.2,2714.9,0.34363752]
[1739526401311,4.49298,2715.2,2715.0,0.1057326]
[1739526401521,3.6831,2715.1,2715.0,0.1057326]
[1739526402362,3.6831,2715.1,2715.0,0.44937012]
[1739526404367,5.310622,2715.2,2715.0,0.44937012]
[1739526404865,3.6831,2715.1,2715.0,0.44937012]
[1739526405222,3.6831,2715.1,2715.0,0.1057326]
[1739526405427,3.6831,2715.1,2714.7,0.6491]
[1739526405655,3.6831,2715.1,2714.8,0.1059068]
[1739526406276,3.6831,2715.1,2714.9,0.34383239]
[1739526406456,3.68276,2715.4,2714.9,4.02716239]
[1739526406768,3.68276,2715.4,2715.1,0.6491]
[1739526407274,3.68276,2715.4,2715.2,0.10550979]
[1739526407572,3.68283,2715.3,2715.2,0.10550979]
[1739526409229,4.497387,2715.4,2715.2,0.10550979]
[1739526409470,8.180167,2715.4,2715.2,0.10550979]
[1739526410179,4.497387,2715.4,2715.2,0.10550979]
[1739526410833,3.68283,2715.3,2715.2,0.10550979]
[1739526411162,4.497327,2715.4,2715.2,0.10550979]
[1739526411682,4.497397,2715.4,2715.2,0.10550979]
[1739526412274,0.814627,2715.4,2715.2,0.10550979]
[1739526414187,0.0075,2715.8,2715.3,4.33192]
[1739526414361,3.68233,2715.7,2715.3,0.6491]
[1739526414561,3.68977,2715.8,2715.4,0.10531133]
[1739526414763,7.37202,2715.8,2715.4,0.10531133]
[1739526414978,4.54966154,2715.8,2715.4,0.10531133]
[1739526415175,3.68242,2715.7,2715.4,0.10531133]
[1739526415578,3.68245,2715.6,2715.4,0.10531133]
[1739526416992,4.50466,2715.5,2715.4,0.10531133]
[1739526417168,4.51216,2715.5,2715.4,0.10531133]
[1739526417371,3.68295,2715.3,2714.9,0.55]
[1739526417699,3.68299,2715.2,2715.0,0.10557471]
[1739526418052,3.68299,2715.2,2714.8,0.65376939]
[1739526418252,3.68325,2715.0,2714.8,0.00466939]
[1739526418492,3.68337,2714.9,2714.8,0.00466939]
[1739526418692,4.502242,2714.9,2714.8,0.00466939]
[1739526419598,0.818872,2714.9,2714.8,0.00466939]
[1739526421005,3.68327,2715.0,2714.8,0.00466939]
[1739526421388,3.0,2715.2,2714.8,0.00466939]
[1739526421589,3.68298,2715.2,2714.8,0.65376939]
[1739526422330,3.8221,2715.3,2714.8,0.65376939]
[1739526422633,3.68297,2715.2,2714.8,0.65376939]
[1739526422803,8.116557,2715.2,2714.8,0.65376939]
[1739526423006,4.433477,2715.2,2714.8,0.65376939]
[1739526423330,0.750507,2715.2,2714.8,0.65376939]
[1739526424031,0.0075,2715.4,2714.8,0.65376939]
[1739526424236,0.0075,2715.4,2715.0,3.68315]
[1739526424528,6.13988528,2715.7,2715.3,3.68279]
[1739526424732,0.0075,2715.6,2715.2,0.6491]
[1739526425096,3.69001,2715.6,2715.2,0.6491]
[1739526425298,4.433791,2715.5,2715.0,4.33231]
[1739526425995,0.751211,2715.5,2715.0,4.33231]
[1739526426842,0.751211,2715.5,2715.1,3.68307]
[1739526427334,0.751211,2715.5,2715.2,0.1055584]
[1739526428713,4.433871,2715.5,2715.2,0.1055584]
[1739526428920,0.4441371,2715.4,2715.0,4.33221]
[1739526429116,0.751211,2715.5,2715.3,0.10545916]
[1739526429319,4.433801,2715.5,2715.0,4.33221]
[1739526429516,4.433801,2715.5,2715.4,0.10533564]
[1739526430045,4.433801,2715.5,2715.0,4.33221]
[1739526430195,4.433801,2715.5,2715.1,0.10563334]
[1739526430404,0.7441301,2715.4,2715.1,0.10563334]
[1739526430611,3.68273,2715.4,2715.1,0.10563334]
[1739526430800,0.8299,2715.3,2714.9,6.10679909]
[1739526430996,0.8299,2715.3,2715.0,0.10573259]
[1739526431546,0.8299,2715.3,2714.8,4.33719939]
[1739526431750,0.8299,2715.3,2715.1,0.10563739]
[1739526432046,0.8299,2715.3,2715.2,0.1055422]
[1739526432349,0.8299,2715.3,2715.0,3.68316]
[1739526432501,0.8299,2715.3,2715.2,0.1055422]
[1739526432700,0.8299,2715.3,2715.1,0.10564144]
[1739526433051,0.8299,2715.3,2715.2,0.1055422]
[1739526433211,0.8299,2715.3,2715.0,3.68316]
[1739526433540,0.8299,2715.3,2715.1,0.10564144]
[1739526434049,0.8299,2715.3,2715.1,0.44944375]
[1739526435642,0.8299,2715.3,2715.1,0.10564144]
[1739526435940,0.0075,2715.6,2715.2,3.68296]
[1739526436114,5.66184147,2715.6,2715.2,3.68296]
[1739526436312,3.68257,2715.5,2715.3,0.10545511]
[1739526436517,5.66184147,2715.6,2715.3,0.10545511]
[1739526436847,9.34435147,2715.6,2715.4,0.10535589]
[1739526437052,1.25324947,2715.5,2715.1,3.68306]
[1739526437200,1.25324947,2715.5,2715.2,0.10556244]
[1739526437522,1.25324947,2715.5,2715.2,3.78845244]
[1739526438041,0.8299,2715.6,2715.3,3.68275]
[1739526438405,0.8299,2715.6,2715.4,0.10536398]
[1739526439446,0.8299,2715.6,2715.4,3.78802398]
[1739526440041,0.8299,2715.6,2715.4,0.10536398]
[1739526440258,0.8299,2715.6,2715.3,3.68283]
[1739526440403,0.8299,2715.6,2715.4,0.10532752]
[1739526442319,1.66710415,2715.6,2715.4,0.10532752]
[1739526442646,1.66710415,2715.6,2715.5,0.10522426]
[1739526442804,1.66710415,2715.6,2715.1,3.68301]
[1739526443009,0.8299,2715.6,2715.2,3.78848193]
[1739526444107,0.8299,2715.6,2715.3,3.68282]
[1739526444531,3.0,2715.7,2715.4,0.10532347]
[1739526444851,0.8042,2716.0,2715.4,0.75442347]
[1739526445053,0.8042,2716.0,2715.5,3.68244]
[1739526445346,3.8042,2716.0,2715.6,0.10510075]
[1739526445509,5.08458153,2716.0,2715.6,0.10510075]
[1739526445914,8.76647153,2716.0,2715.6,0.10510075]
[1739526446649,12.44843153,2716.0,2715.6,0.10510075]
[1739526446824,3.68203,2715.9,2715.6,0.10510075]
[1739526447024,3.68203,2715.9,2715.4,4.33179]
[1739526447222,12.44847153,2716.0,2715.5,3.78774997]
[1739526447452,1.24484715,2715.9,2715.5,3.78774997]
[1739526448552,4.92686715,2715.9,2715.5,3.78774997]
[1739526448759,4.92686715,2715.9,2715.5,0.10519997]
[1739526448913,0.8155,2715.7,2715.5,0.10519997]
[1739526449263,4.49784,2715.7,2715.6,0.10504408]
[1739526449475,3.68243,2715.6,2715.1,4.33211]
[1739526449634,3.68243,2715.6,2715.2,0.10544097]
[1739526450426,7.36497,2715.6,2715.2,0.10544097]
[1739526450620,3.68243,2715.6,2715.2,0.10544097]
[1739526453730,3.68261,2715.5,2715.2,0.10544097]
[1739526453929,3.68243,2715.6,2715.2,0.10544097]
[1739526454130,8.44031772,2715.7,2715.1,3.68301]
[1739526454330,8.44031772,2715.7,2715.3,0.10530531]
[1739526454642,8.44031772,2715.7,2715.4,0.1052911]
[1739526454843,8.44031772,2715.7,2715.2,3.68291]
[1739526455027,8.44031772,2715.7,2715.3,0.10539033]
[1739526455771,3.68248,2715.6,2715.3,0.10539033]
[1739526456133,3.68248,2715.6,2715.2,3.68295]
[1739526456336,3.68248,2715.6,2715.4,0.1052911]
[1739526456548,0.84404777,2715.6,2715.3,0.10539033]
[1739526456748,0.84404777,2715.6,2715.5,0.10519188]
[1739526456959,0.84404777,2715.6,2715.2,3.68295]
[1739526456960,0.84404777,2715.6,2715.4,0.1052911]
[1739526457164,3.68209,2715.9,2715.5,0.10519188]
[1739526457370,3.68225,2715.8,2715.5,0.10519188]
[1739526458086,3.68209,2715.9,2715.5,0.10519188]
[1739526458382,3.68226,2715.8,2715.5,0.10519188]
[1739526459487,4.431549,2715.9,2715.5,0.10519188]
[1739526460248,3.68217,2715.8,2715.5,0.10519188]
[1739526460782,3.68236,2715.7,2715.5,0.10519188]
[1739526463243,4.431539,2715.9,2715.5,0.10519188]
[1739526463945,3.68222,2715.8,2715.5,0.10519188]
[1739526464293,3.6823,2715.7,2715.5,0.10519188]
[1739526464587,4.4936839,2715.7,2715.2,4.33198]
[1739526464788,3.6823,2715.7,2715.6,0.1050522]
[1739526464964,3.6823,2715.7,2715.2,4.33198]
[1739526465305,3.6823,2715.7,2715.3,3.68282]
[1739526465506,3.68216,2715.8,2715.3,3.78816985]
[1739526468498,4.431539,2715.9,2715.4,3.68257]
[1739526468701,4.431539,2715.9,2715.5,0.10515141]
[1739526468876,4.431539,2715.9,2715.4,3.68269]
[1739526469059,3.68208,2715.9,2715.5,0.10515141]
[1739526469360,3.68208,2715.9,2715.6,0.6491]
[1739526469700,3.68216,2715.8,2715.7,0.10495299]
[1739526469906,0.8125,2716.0,2715.7,0.10495299]
[1739526469907,4.49448,2716.0,2715.7,0.10495299]
[1739526470105,3.68215,2715.8,2715.4,0.6491]
[1739526470258,3.68215,2715.8,2715.5,0.10515141]
[1739526471898,6.68202,2715.9,2715.5,0.10515141]
[1739526472105,3.0,2715.9,2715.5,3.78770141]
[1739526472400,6.68211,2715.9,2715.5,0.10515141]
[1739526473008,3.0,2715.9,2715.5,3.78769141]
[1739526474201,3.0,2715.9,2715.5,0.10515141]
[1739526474407,6.68205,2715.9,2715.5,0.10515141]
[1739526475194,3.0,2715.9,2715.5,3.78770141]
[1739526475708,6.68202,2715.9,2715.5,3.78770141]
[1739526476211,3.0,2715.9,2715.5,3.78770141]
[1739526476701,6.68204,2715.9,2715.5,3.78770141]
[1739526476879,7.799683,2715.9,2715.5,0.10515141]
[1739526480515,4.117643,2715.9,2715.5,0.10515141]
[1739526480723,3.68224,2715.8,2715.5,0.10515141]
[1739526482325,3.0,2715.9,2715.5,0.10515141]
[1739526482529,3.0,2715.9,2715.6,0.6491]
[1739526483011,3.0,2715.9,2715.7,0.10492871]
[1739526483380,3.68215,2715.8,2715.7,0.10492871]
[1739526483583,4.718562,2715.8,2715.4,0.6491]
[1739526484110,3.0,2715.9,2715.5,0.10512712]
[1739526484315,6.68212,2715.9,2715.5,0.10512712]
[1739526484708,3.0,2715.9,2715.5,3.78761712]
[1739526487489,3.0,2715.9,2715.5,3.78766712]
[1739526488833,6.68204,2715.9,2715.5,3.78766712]
[1739526489129,3.0,2715.9,2715.5,7.47015712]
[1739526489336,3.0,2715.9,2715.5,3.78761712]
[1739526491489,0.3,2715.8,2715.5,3.78761712]
[1739526491691,3.68202,2715.9,2715.5,3.78761712]
[1739526492353,3.68215,2715.8,2715.5,0.10512712]
[1739526492648,0.7864,2715.8,2715.5,0.10512712]
[1739526493206,6.68199,2716.0,2715.5,3.78767712]
[1739526493207,7.46839,2716.0,2715.5,3.78767712]
[1739526493958,3.68203,2715.9,2715.5,0.10512712]
[1739526494829,3.7864,2716.0,2715.5,3.78765712]
[1739526495021,0.746825,2715.9,2715.5,3.78765712]
[1739526496216,4.428895,2715.9,2715.5,0.10512712]
[1739526496825,0.746825,2715.9,2715.5,3.78766712]
[1739526497138,4.428905,2715.9,2715.5,0.10512712]
[1739526497524,3.68235,2715.7,2715.5,0.10512712]
[1739526497895,4.46869,2715.7,2715.2,0.6491]
[1739526498097,3.68278,2715.4,2715.3,0.10521221]
[1739526498444,3.68278,2715.4,2714.9,9.58247]
[1739526498640,7.36557,2715.4,2715.3,0.10521221]
[1739526498943,0.0075,2715.2,2714.8,0.00466939]
[1739526499097,4.51577,2714.9,2714.8,0.00466939]
[1739526499939,7.52327,2714.9,2714.8,0.00466939]
[1739526502023,6.69087,2714.9,2714.8,0.00466939]
[1739526502200,8.46459052,2714.9,2714.8,0.00466939]
[1739526505016,8.46459052,2714.9,2714.8,0.10710368]
[1739526505216,8.46459052,2714.9,2714.8,0.00466939]
[1739526505744,4.78122052,2714.9,2714.8,0.00466939]
[1739526505898,8.46459052,2714.9,2714.8,0.10710368]
[1739526506098,8.46459052,2714.9,2714.8,0.65710368]
[1739526506584,8.46459052,2714.9,2714.8,0.55466939]
[1739526508216,8.46459052,2714.9,2714.8,0.65760989]
[1739526509320,8.46459052,2714.9,2714.8,0.55466939]
[1739526510025,8.46459052,2714.9,2714.8,0.65760989]
[1739526512110,4.78122052,2714.9,2714.8,0.65760989]
[1739526512541,8.46459052,2714.9,2714.8,0.65760989]
[1739526515842,4.77372052,2714.9,2714.8,0.65760989]
[1739526516051,3.0,2714.9,2714.8,0.55466939]
[1739526516271,6.68337,2714.9,2714.8,0.65760989]
[1739526517985,6.69087,2714.9,2714.8,0.65760989]